[Event "Titled Tuesday Blitz October 26 2021"]
[White "Grischuk, Alexander"]
[Black "Nesterov, Arseniy"]
[WhiteFideId "4126025"]
[BlackFideId "24198455"]
[WhiteElo "2757"]
[BlackElo "2494"]
[Result "1/2-1/2"]
[Round "09"]
[TimeControl "180+1"]
[Date "2021.10.26"]
[WhiteClock "0:00:03"]
[BlackClock "0:00:06"]

1. e4 {[%clk 0:03:00]}  e5 {[%clk 0:03:00]} 2. Nf3 {[%clk 0:03:00]}  Nc6 {[%clk 0:03:00]} 3. Bc4 {[%clk 0:03:01]}  Bc5 {[%clk 0:02:59]} 4. c3 {[%clk 0:03:00]}  Nf6 {[%clk 0:02:59]} 5. d3 {[%clk 0:03:01]}  d6 {[%clk 0:02:59]} 6. O-O {[%clk 0:02:59]}  O-O {[%clk 0:02:59]} 7. Re1 {[%clk 0:02:58]}  a5 {[%clk 0:02:58]} 8. a4 {[%clk 0:02:44]}  h6 {[%clk 0:02:56]} 9. h3 {[%clk 0:02:42]}  Bb6 {[%clk 0:02:37]} 10. Nbd2 {[%clk 0:02:37]}  Ne7 {[%clk 0:02:35]} 11. d4 {[%clk 0:02:25]}  Ng6 {[%clk 0:02:35]} 12. Bd3 {[%clk 0:02:22]}  Be6 {[%clk 0:02:14]} 13. Nf1 {[%clk 0:02:20]}  Re8 {[%clk 0:02:09]} 14. Ng3 {[%clk 0:02:19]}  c6 {[%clk 0:02:08]} 15. Be3 {[%clk 0:02:19]}  Bc7 {[%clk 0:02:06]} 16. Qc2 {[%clk 0:02:14]}  Qe7 {[%clk 0:01:52]} 17. Rad1 {[%clk 0:02:03]}  Rad8 {[%clk 0:01:42]} 18. b4 {[%clk 0:01:51]}  axb4 {[%clk 0:00:55]} 19. cxb4 {[%clk 0:01:51]}  d5 {[%clk 0:00:52]} 20. exd5 {[%clk 0:01:38]}  Nxd5 {[%clk 0:00:53]} 21. Bxg6 {[%clk 0:01:37]}  fxg6 {[%clk 0:00:54]} 22. Nxe5 {[%clk 0:01:28]}  Bxe5 {[%clk 0:00:52]} 23. dxe5 {[%clk 0:01:29]}  Nxe3 {[%clk 0:00:45]} 24. Rxe3 {[%clk 0:01:25]}  Rxd1+ {[%clk 0:00:41]} 25. Qxd1 {[%clk 0:01:26]}  Qxb4 {[%clk 0:00:42]} 26. Ne4 {[%clk 0:01:23]}  Bd5 {[%clk 0:00:33]} 27. Qg4 {[%clk 0:00:57]}  Qb1+ {[%clk 0:00:09]} 28. Kh2 {[%clk 0:00:57]}  Rxe5 {[%clk 0:00:10]} 29. Nd6 {[%clk 0:00:21]}  Rxe3 {[%clk 0:00:09]} 30. fxe3 {[%clk 0:00:22]}  Kh7 {[%clk 0:00:06]} 31. e4 {[%clk 0:00:20]}  Qb4 {[%clk 0:00:06]} 32. Qf4 {[%clk 0:00:18]}  Be6 {[%clk 0:00:05]} 33. Qe5 {[%clk 0:00:18]}  Bd7 {[%clk 0:00:04]} 34. Qe7 {[%clk 0:00:18]}  Qd4 {[%clk 0:00:02]} 35. Qxd7 {[%clk 0:00:10]}  Qe5+ {[%clk 0:00:03]} 36. Kg1 {[%clk 0:00:10]}  Qd4+ {[%clk 0:00:03]} 37. Kf1 {[%clk 0:00:11]}  Qd1+ {[%clk 0:00:04]} 38. Kf2 {[%clk 0:00:11]}  Qd2+ {[%clk 0:00:04]} 39. Kf3 {[%clk 0:00:09]}  Qc3+ {[%clk 0:00:04]} 40. Kg4 {[%clk 0:00:03]}  h5+ {[%clk 0:00:03]} 41. Kf4 {[%clk 0:00:03]}  Qf6+ {[%clk 0:00:03]} 42. Kg3 {[%clk 0:00:02]}  Qe5+ {[%clk 0:00:04]} 43. Kf3 {[%clk 0:00:03]}  Qc3+ {[%clk 0:00:04]} 44. Ke2 {[%clk 0:00:03]}  Qc2+ {[%clk 0:00:04]} 45. Ke3 {[%clk 0:00:03]}  Qc3+ {[%clk 0:00:05]} 46. Kf2 {[%clk 0:00:03]}  Qd2+ {[%clk 0:00:05]} 47. Kf3 {[%clk 0:00:02]}  Qc3+ {[%clk 0:00:05]} 48. Kf2 {[%clk 0:00:02]}  Qd2+ {[%clk 0:00:05]} 49. Kf1 {[%clk 0:00:02]}  Qd1+ {[%clk 0:00:06]} 50. Kf2 {[%clk 0:00:03]}  Qd2+ {[%clk 0:00:06]} 1/2-1/2


[Site "https://www.chess.com"]

[Event "Titled Tuesday Blitz October 26 2021"]
[White "Guliev, Logman"]
[Black "Kosteniuk, Alexandra"]
[WhiteFideId "13400061"]
[BlackFideId "4128125"]
[WhiteElo "2128"]
[BlackElo "2521"]
[Result "1-0"]
[Round "09"]
[TimeControl "180+1"]
[Date "2021.10.26"]
[WhiteClock "0:00:21"]
[BlackClock "0:00:03"]

1. e4 {[%clk 0:03:00]}  c5 {[%clk 0:02:58]} 2. Nf3 {[%clk 0:03:00]}  e6 {[%clk 0:02:59]} 3. d4 {[%clk 0:02:59]}  cxd4 {[%clk 0:02:59]} 4. Nxd4 {[%clk 0:03:00]}  Nf6 {[%clk 0:03:00]} 5. Bd3 {[%clk 0:03:00]}  d6 {[%clk 0:02:57]} 6. O-O {[%clk 0:02:58]}  Nc6 {[%clk 0:02:57]} 7. Nxc6 {[%clk 0:02:53]}  bxc6 {[%clk 0:02:57]} 8. c4 {[%clk 0:02:54]}  Be7 {[%clk 0:02:54]} 9. b3 {[%clk 0:02:54]}  O-O {[%clk 0:02:51]} 10. Bb2 {[%clk 0:02:53]}  Bb7 {[%clk 0:02:50]} 11. Nd2 {[%clk 0:02:49]}  c5 {[%clk 0:02:49]} 12. f4 {[%clk 0:02:47]}  a5 {[%clk 0:02:45]} 13. Qe2 {[%clk 0:02:41]}  a4 {[%clk 0:02:45]} 14. Kh1 {[%clk 0:02:39]}  axb3 {[%clk 0:02:41]} 15. axb3 {[%clk 0:02:37]}  Rxa1 {[%clk 0:02:38]} 16. Rxa1 {[%clk 0:02:37]}  Qb6 {[%clk 0:02:34]} 17. e5 {[%clk 0:02:36]}  dxe5 {[%clk 0:02:23]} 18. fxe5 {[%clk 0:02:35]}  Nd7 {[%clk 0:02:22]} 19. Bc2 {[%clk 0:02:01]}  Rd8 {[%clk 0:02:15]} 20. Rf1 {[%clk 0:01:57]}  f5 {[%clk 0:01:50]} 21. exf6 {[%clk 0:01:40]}  Nxf6 {[%clk 0:01:48]} 22. Bxf6 {[%clk 0:01:30]}  Bxf6 {[%clk 0:01:48]} 23. Qh5 {[%clk 0:01:30]}  Bxg2+ {[%clk 0:01:29]} 24. Kxg2 {[%clk 0:01:29]}  Rxd2+ {[%clk 0:01:28]} 25. Kh3 {[%clk 0:01:10]}  Qc6 {[%clk 0:01:01]} 26. Qxh7+ {[%clk 0:00:51]}  Kf7 {[%clk 0:01:00]} 27. Rxf6+ {[%clk 0:00:33]}  Kxf6 {[%clk 0:00:56]} 28. Qg6+ {[%clk 0:00:33]}  Ke7 {[%clk 0:00:48]} 29. Qg5+ {[%clk 0:00:29]}  Kf7 {[%clk 0:00:44]} 30. Bg6+ {[%clk 0:00:26]}  Kg8 {[%clk 0:00:21]} 31. Qxd2 {[%clk 0:00:25]}  Qf3+ {[%clk 0:00:21]} 32. Kh4 {[%clk 0:00:25]}  Qf6+ {[%clk 0:00:21]} 33. Qg5 {[%clk 0:00:25]}  Qf2+ {[%clk 0:00:18]} 34. Qg3 {[%clk 0:00:25]}  Qd4+ {[%clk 0:00:13]} 35. Kh3 {[%clk 0:00:25]}  e5 {[%clk 0:00:12]} 36. Qf3 {[%clk 0:00:23]}  Qd7+ {[%clk 0:00:07]} 37. Qf5 {[%clk 0:00:23]}  Qd8 {[%clk 0:00:03]} 38. Qe6+ {[%clk 0:00:21]}  Kh8 {[%clk 0:00:03]} 39. Qe8+ {[%clk 0:00:21]}  Qxe8 {[%clk 0:00:03]} 40. Bxe8 {[%clk 0:00:21]} 1-0


[Site "https://www.chess.com"]

[Event "Titled Tuesday Blitz October 26 2021"]
[White "Gupta, Abhijeet"]
[Black "Sorokin, Aleksey"]
[WhiteFideId "5010608"]
[BlackFideId "24176460"]
[WhiteElo "2549"]
[BlackElo "2476"]
[Result "0-1"]
[Round "09"]
[TimeControl "180+1"]
[Date "2021.10.26"]
[WhiteClock "0:00:26"]
[BlackClock "0:01:10"]

1. Nf3 {[%clk 0:03:00]}  Nf6 {[%clk 0:02:59]} 2. g3 {[%clk 0:03:00]}  g6 {[%clk 0:02:59]} 3. b3 {[%clk 0:03:00]}  Bg7 {[%clk 0:02:52]} 4. Bb2 {[%clk 0:03:01]}  c5 {[%clk 0:02:49]} 5. c4 {[%clk 0:02:57]}  b6 {[%clk 0:02:48]} 6. Bg2 {[%clk 0:02:56]}  Bb7 {[%clk 0:02:48]} 7. O-O {[%clk 0:02:56]}  O-O {[%clk 0:02:48]} 8. Nc3 {[%clk 0:02:53]}  Nc6 {[%clk 0:02:48]} 9. d4 {[%clk 0:02:49]}  d6 {[%clk 0:02:48]} 10. d5 {[%clk 0:02:45]}  Nb8 {[%clk 0:02:47]} 11. Qc2 {[%clk 0:02:43]}  Nbd7 {[%clk 0:02:45]} 12. e4 {[%clk 0:02:43]}  a6 {[%clk 0:02:43]} 13. h3 {[%clk 0:02:42]}  Qc7 {[%clk 0:02:43]} 14. Ne1 {[%clk 0:02:34]}  Rae8 {[%clk 0:02:41]} 15. Nd3 {[%clk 0:02:34]}  e6 {[%clk 0:02:42]} 16. Rae1 {[%clk 0:02:30]}  exd5 {[%clk 0:02:41]} 17. exd5 {[%clk 0:02:31]}  Bc8 {[%clk 0:02:40]} 18. Kh2 {[%clk 0:02:30]}  Nb8 {[%clk 0:02:36]} 19. g4 {[%clk 0:02:28]}  h5 {[%clk 0:02:32]} 20. f3 {[%clk 0:02:24]}  Bd7 {[%clk 0:02:29]} 21. Kh1 {[%clk 0:02:17]}  Qd8 {[%clk 0:02:27]} 22. Bc1 {[%clk 0:01:54]}  hxg4 {[%clk 0:02:15]} 23. fxg4 {[%clk 0:01:53]}  Nxg4 {[%clk 0:02:10]} 24. Rxe8 {[%clk 0:01:46]}  Rxe8 {[%clk 0:02:09]} 25. hxg4 {[%clk 0:01:19]}  Qh4+ {[%clk 0:02:09]} 26. Kg1 {[%clk 0:01:19]}  Bd4+ {[%clk 0:02:09]} 27. Nf2 {[%clk 0:01:19]}  Bxg4 {[%clk 0:02:09]} 28. Ne4 {[%clk 0:01:11]}  Bf5 {[%clk 0:02:04]} 29. Re1 {[%clk 0:00:38]}  Bxe4 {[%clk 0:01:38]} 30. Bxe4 {[%clk 0:00:36]}  f5 {[%clk 0:01:19]} 31. Bb2 {[%clk 0:00:28]}  Rxe4 {[%clk 0:01:13]} 32. Rxe4 {[%clk 0:00:25]}  Qxf2+ {[%clk 0:01:12]} 33. Qxf2 {[%clk 0:00:24]}  Bxf2+ {[%clk 0:01:13]} 34. Kxf2 {[%clk 0:00:24]}  fxe4 {[%clk 0:01:13]} 35. Ke3 {[%clk 0:00:25]}  Kf7 {[%clk 0:01:13]} 36. Kxe4 {[%clk 0:00:26]}  Nd7 {[%clk 0:01:13]} 37. Kf4 {[%clk 0:00:26]}  b5 {[%clk 0:01:13]} 38. cxb5 {[%clk 0:00:25]}  axb5 {[%clk 0:01:13]} 39. a4 {[%clk 0:00:24]}  bxa4 {[%clk 0:01:13]} 40. bxa4 {[%clk 0:00:25]}  Nb6 {[%clk 0:01:13]} 41. a5 {[%clk 0:00:26]}  Nxd5+ {[%clk 0:01:13]} 42. Ke4 {[%clk 0:00:26]}  Nc7 {[%clk 0:01:13]} 43. Bc1 {[%clk 0:00:24]}  Ke6 {[%clk 0:01:13]} 44. Bf4 {[%clk 0:00:24]}  d5+ {[%clk 0:01:10]} 45. Kf3 {[%clk 0:00:25]}  Na6 {[%clk 0:01:10]} 46. Kg4 {[%clk 0:00:25]}  d4 {[%clk 0:01:09]} 47. Kg5 {[%clk 0:00:26]}  Kd5 {[%clk 0:01:10]} 48. Kxg6 {[%clk 0:00:26]}  Ke4 {[%clk 0:01:10]} 49. Bc1 {[%clk 0:00:25]}  c4 {[%clk 0:01:10]} 50. Kf6 {[%clk 0:00:26]}  c3 {[%clk 0:01:10]} 0-1


[Site "https://www.chess.com"]

[Event "Titled Tuesday Blitz October 26 2021"]
[White "Haitin, Ilja"]
[Black "Wagh Suyog"]
[WhiteFideId "4501764"]
[BlackFideId "25071688"]
[WhiteElo "2206"]
[BlackElo "2219"]
[Result "0-1"]
[Round "09"]
[TimeControl "180+1"]
[Date "2021.10.26"]
[WhiteClock "0:00:02"]
[BlackClock "0:00:43"]

1. e4 {[%clk 0:02:48]}  c5 {[%clk 0:02:47]} 2. c3 {[%clk 0:02:48]}  Nf6 {[%clk 0:02:46]} 3. e5 {[%clk 0:02:49]}  Nd5 {[%clk 0:02:46]} 4. Nf3 {[%clk 0:02:49]}  Nc6 {[%clk 0:02:45]} 5. Bc4 {[%clk 0:02:48]}  Nb6 {[%clk 0:02:44]} 6. Be2 {[%clk 0:02:48]}  d5 {[%clk 0:02:45]} 7. exd6 {[%clk 0:02:48]}  Qxd6 {[%clk 0:02:44]} 8. Na3 {[%clk 0:02:49]}  Bg4 {[%clk 0:02:36]} 9. O-O {[%clk 0:02:46]}  e6 {[%clk 0:02:35]} 10. h3 {[%clk 0:02:46]}  Bh5 {[%clk 0:02:35]} 11. d4 {[%clk 0:02:46]}  cxd4 {[%clk 0:02:34]} 12. Nb5 {[%clk 0:02:46]}  Qd8 {[%clk 0:02:28]} 13. Nbxd4 {[%clk 0:02:43]}  Nxd4 {[%clk 0:02:24]} 14. Nxd4 {[%clk 0:02:44]}  Bxe2 {[%clk 0:02:23]} 15. Qxe2 {[%clk 0:02:45]}  Be7 {[%clk 0:02:23]} 16. Rd1 {[%clk 0:02:29]}  Qc8 {[%clk 0:02:23]} 17. Qb5+ {[%clk 0:02:21]}  Qd7 {[%clk 0:02:23]} 18. Qxd7+ {[%clk 0:02:10]}  Nxd7 {[%clk 0:02:03]} 19. Nb5 {[%clk 0:02:10]}  Kd8 {[%clk 0:02:03]} 20. Bf4 {[%clk 0:02:06]}  a6 {[%clk 0:02:02]} 21. Nd6 {[%clk 0:01:58]}  Bxd6 {[%clk 0:02:02]} 22. Rxd6 {[%clk 0:01:57]}  Ke7 {[%clk 0:02:02]} 23. Rad1 {[%clk 0:01:52]}  Rhd8 {[%clk 0:01:59]} 24. Be3 {[%clk 0:01:45]}  Nf6 {[%clk 0:01:54]} 25. Rxd8 {[%clk 0:00:41]}  Rxd8 {[%clk 0:01:54]} 26. Rxd8 {[%clk 0:00:42]}  Kxd8 {[%clk 0:01:54]} 27. c4 {[%clk 0:00:27]}  Ne4 {[%clk 0:01:51]} 28. Kf1 {[%clk 0:00:25]}  Kd7 {[%clk 0:01:48]} 29. Ke2 {[%clk 0:00:25]}  Kc6 {[%clk 0:01:48]} 30. Kd3 {[%clk 0:00:25]}  f5 {[%clk 0:01:48]} 31. Bd4 {[%clk 0:00:19]}  g6 {[%clk 0:01:46]} 32. f3 {[%clk 0:00:20]}  Nd6 {[%clk 0:01:46]} 33. Be5 {[%clk 0:00:17]}  Nf7 {[%clk 0:01:46]} 34. Kd4 {[%clk 0:00:15]}  Kd7 {[%clk 0:01:39]} 35. a4 {[%clk 0:00:12]}  Nd8 {[%clk 0:01:39]} 36. Kc5 {[%clk 0:00:06]}  Nc6 {[%clk 0:01:39]} 37. Bh2 {[%clk 0:00:04]}  e5 {[%clk 0:01:37]} 38. b4 {[%clk 0:00:03]}  e4 {[%clk 0:01:22]} 39. fxe4 {[%clk 0:00:03]}  fxe4 {[%clk 0:01:23]} 40. b5 {[%clk 0:00:04]}  axb5 {[%clk 0:01:23]} 41. cxb5 {[%clk 0:00:03]}  Na5 {[%clk 0:01:21]} 42. Kd4 {[%clk 0:00:02]}  Nb3+ {[%clk 0:01:21]} 43. Kxe4 {[%clk 0:00:02]}  Nc5+ {[%clk 0:01:22]} 44. Kd5 {[%clk 0:00:02]}  Nxa4 {[%clk 0:01:22]} 45. Be5 {[%clk 0:00:02]}  Nb6+ {[%clk 0:01:19]} 46. Kc5 {[%clk 0:00:02]}  Nc8 {[%clk 0:01:18]} 47. Bf6 {[%clk 0:00:02]}  Ke6 {[%clk 0:01:18]} 48. Bh4 {[%clk 0:00:02]}  Ke5 {[%clk 0:01:15]} 49. b6 {[%clk 0:00:03]}  h5 {[%clk 0:01:10]} 50. Bd8 {[%clk 0:00:03]}  Ke4 {[%clk 0:01:07]} 51. Bf6 {[%clk 0:00:02]}  Kf5 {[%clk 0:01:04]} 52. Bd8 {[%clk 0:00:02]}  Kf4 {[%clk 0:01:01]} 53. Bf6 {[%clk 0:00:02]}  Kg3 {[%clk 0:01:01]} 54. h4 {[%clk 0:00:02]}  Kxg2 {[%clk 0:00:57]} 55. Bd8 {[%clk 0:00:03]}  Kg3 {[%clk 0:00:58]} 56. Kd5 {[%clk 0:00:03]}  Nxb6+ {[%clk 0:00:48]} 57. Bxb6 {[%clk 0:00:02]}  Kxh4 {[%clk 0:00:48]} 58. Ke4 {[%clk 0:00:02]}  Kg3 {[%clk 0:00:48]} 59. Bc7+ {[%clk 0:00:02]}  Kg2 {[%clk 0:00:43]} 60. Kf4 {[%clk 0:00:02]}  h4 {[%clk 0:00:43]} 61. Kg4 {[%clk 0:00:02]}  h3 {[%clk 0:00:43]} 62. Bb6 {[%clk 0:00:02]}  h2 {[%clk 0:00:43]} 0-1


[Site "https://www.chess.com"]

[Event "Titled Tuesday Blitz October 26 2021"]
[White "Hakobyan, Aram"]
[Black "Kobalia, Mikhail"]
[WhiteFideId "13306677"]
[BlackFideId "4119150"]
[WhiteElo "2557"]
[BlackElo "2590"]
[Result "1-0"]
[Round "09"]
[TimeControl "180+1"]
[Date "2021.10.26"]
[WhiteClock "0:00:11"]
[BlackClock "0:00:19"]

1. b3 {[%clk 0:03:00]}  e5 {[%clk 0:02:58]} 2. Bb2 {[%clk 0:03:01]}  Nc6 {[%clk 0:02:58]} 3. c4 {[%clk 0:03:02]}  g6 {[%clk 0:02:58]} 4. g3 {[%clk 0:03:01]}  Bg7 {[%clk 0:02:58]} 5. Bg2 {[%clk 0:03:02]}  Nge7 {[%clk 0:02:57]} 6. Nc3 {[%clk 0:03:02]}  O-O {[%clk 0:02:56]} 7. d3 {[%clk 0:03:03]}  d6 {[%clk 0:02:56]} 8. Qd2 {[%clk 0:03:03]}  f5 {[%clk 0:02:56]} 9. e3 {[%clk 0:02:59]}  f4 {[%clk 0:02:55]} 10. Nf3 {[%clk 0:02:40]}  Bg4 {[%clk 0:02:47]} 11. O-O {[%clk 0:02:32]}  Qd7 {[%clk 0:02:46]} 12. Nd5 {[%clk 0:02:25]}  fxg3 {[%clk 0:02:05]} 13. fxg3 {[%clk 0:02:24]}  h6 {[%clk 0:02:01]} 14. Rf2 {[%clk 0:02:22]}  Nxd5 {[%clk 0:01:53]} 15. cxd5 {[%clk 0:02:23]}  Ne7 {[%clk 0:01:53]} 16. e4 {[%clk 0:02:19]}  c6 {[%clk 0:01:48]} 17. dxc6 {[%clk 0:02:19]}  Nxc6 {[%clk 0:01:48]} 18. Raf1 {[%clk 0:02:20]}  Bxf3 {[%clk 0:01:46]} 19. Bxf3 {[%clk 0:02:20]}  Nd4 {[%clk 0:01:47]} 20. Bxd4 {[%clk 0:02:04]}  exd4 {[%clk 0:01:46]} 21. Qb4 {[%clk 0:02:05]}  Be5 {[%clk 0:01:40]} 22. Bg4 {[%clk 0:01:51]}  Qxg4 {[%clk 0:01:13]} 23. Qc4+ {[%clk 0:01:51]}  Kg7 {[%clk 0:01:13]} 24. Qc7+ {[%clk 0:01:34]}  Kg8 {[%clk 0:01:13]} 25. Qxb7 {[%clk 0:01:07]}  Qe6 {[%clk 0:01:00]} 26. Rxf8+ {[%clk 0:01:03]}  Rxf8 {[%clk 0:00:59]} 27. Rxf8+ {[%clk 0:01:04]}  Kxf8 {[%clk 0:00:59]} 28. Qxa7 {[%clk 0:01:04]}  h5 {[%clk 0:00:59]} 29. Qb8+ {[%clk 0:00:56]}  Kg7 {[%clk 0:00:57]} 30. Qc7+ {[%clk 0:00:50]}  Kh6 {[%clk 0:00:57]} 31. Qc1+ {[%clk 0:00:46]}  g5 {[%clk 0:00:56]} 32. h4 {[%clk 0:00:32]}  Bf6 {[%clk 0:00:55]} 33. Kg2 {[%clk 0:00:29]}  Qg4 {[%clk 0:00:52]} 34. Qf1 {[%clk 0:00:28]}  Kg6 {[%clk 0:00:50]} 35. hxg5 {[%clk 0:00:23]}  Bxg5 {[%clk 0:00:49]} 36. a4 {[%clk 0:00:09]}  h4 {[%clk 0:00:47]} 37. Qf5+ {[%clk 0:00:09]}  Qxf5 {[%clk 0:00:45]} 38. exf5+ {[%clk 0:00:10]}  Kxf5 {[%clk 0:00:41]} 39. a5 {[%clk 0:00:11]}  Bd8 {[%clk 0:00:39]} 40. a6 {[%clk 0:00:12]}  Bb6 {[%clk 0:00:39]} 41. gxh4 {[%clk 0:00:12]}  Kg4 {[%clk 0:00:38]} 42. h5 {[%clk 0:00:09]}  Kxh5 {[%clk 0:00:38]} 43. Kf3 {[%clk 0:00:10]}  d5 {[%clk 0:00:37]} 44. Kf4 {[%clk 0:00:11]}  Ba7 {[%clk 0:00:28]} 45. b4 {[%clk 0:00:11]}  Kh4 {[%clk 0:00:19]} 46. b5 {[%clk 0:00:07]}  Kh3 {[%clk 0:00:18]} 47. Ke5 {[%clk 0:00:08]}  Kg4 {[%clk 0:00:18]} 48. Kxd5 {[%clk 0:00:09]}  Kf3 {[%clk 0:00:19]} 49. Kc6 {[%clk 0:00:10]}  Ke3 {[%clk 0:00:19]} 50. b6 {[%clk 0:00:11]} 1-0


[Site "https://www.chess.com"]

[Event "Titled Tuesday Blitz October 26 2021"]
[White "Jobava, Baadur"]
[Black "Beerdsen, Thomas"]
[WhiteFideId "13601520"]
[BlackFideId "1030108"]
[WhiteElo "2731"]
[BlackElo "2585"]
[Result "1-0"]
[Round "09"]
[TimeControl "180+1"]
[Date "2021.10.26"]
[WhiteClock "0:00:09"]
[BlackClock "0:00:03"]

1. e4 {[%clk 0:03:00]}  h6 {[%clk 0:03:00]} 2. d4 {[%clk 0:02:59]}  g5 {[%clk 0:03:01]} 3. f4 {[%clk 0:02:58]}  gxf4 {[%clk 0:03:00]} 4. Bxf4 {[%clk 0:02:59]}  c6 {[%clk 0:02:58]} 5. Nc3 {[%clk 0:02:58]}  d6 {[%clk 0:02:56]} 6. Nf3 {[%clk 0:02:57]}  Nf6 {[%clk 0:02:55]} 7. e5 {[%clk 0:02:54]}  dxe5 {[%clk 0:02:52]} 8. Nxe5 {[%clk 0:02:51]}  Be6 {[%clk 0:02:48]} 9. Qd2 {[%clk 0:02:33]}  Nbd7 {[%clk 0:02:43]} 10. O-O-O {[%clk 0:02:32]}  Nxe5 {[%clk 0:02:33]} 11. Bxe5 {[%clk 0:02:33]}  Qa5 {[%clk 0:02:21]} 12. d5 {[%clk 0:01:48]}  O-O-O {[%clk 0:02:11]} 13. Qf4 {[%clk 0:01:31]}  h5 {[%clk 0:01:52]} 14. Kb1 {[%clk 0:01:11]}  Bh6 {[%clk 0:01:46]} 15. Qf3 {[%clk 0:00:43]}  Nxd5 {[%clk 0:01:44]} 16. Bc4 {[%clk 0:00:38]}  f6 {[%clk 0:00:59]} 17. Nxd5 {[%clk 0:00:26]}  cxd5 {[%clk 0:00:54]} 18. Bc3 {[%clk 0:00:25]}  Qc5 {[%clk 0:00:47]} 19. Bb3 {[%clk 0:00:21]}  Rd7 {[%clk 0:00:28]} 20. Rhe1 {[%clk 0:00:18]}  Bf7 {[%clk 0:00:24]} 21. Bd4 {[%clk 0:00:17]}  Qa5 {[%clk 0:00:24]} 22. Qf5 {[%clk 0:00:15]}  Bg5 {[%clk 0:00:17]} 23. Rxe7 {[%clk 0:00:14]}  Be8 {[%clk 0:00:12]} 24. Rde1 {[%clk 0:00:13]}  Qd8 {[%clk 0:00:11]} 25. Ba4 {[%clk 0:00:10]}  Bh4 {[%clk 0:00:04]} 26. Rxe8 {[%clk 0:00:09]}  Rxe8 {[%clk 0:00:03]} 27. Bxd7+ {[%clk 0:00:09]} 1-0


[Site "https://www.chess.com"]

[Event "Titled Tuesday Blitz October 26 2021"]
[White "Lazavik, Denis"]
[Black "Preotu, Razvan"]
[WhiteFideId "13515110"]
[BlackFideId "2613280"]
[WhiteElo "2436"]
[BlackElo "2407"]
[Result "1-0"]
[Round "09"]
[TimeControl "180+1"]
[Date "2021.10.26"]
[WhiteClock "0:00:41"]
[BlackClock "0:00:03"]

1. d4 {[%clk 0:03:00]}  Nf6 {[%clk 0:02:59]} 2. c4 {[%clk 0:03:01]}  g6 {[%clk 0:02:59]} 3. Nc3 {[%clk 0:03:00]}  d5 {[%clk 0:02:59]} 4. Bf4 {[%clk 0:03:00]}  Bg7 {[%clk 0:02:58]} 5. e3 {[%clk 0:03:00]}  O-O {[%clk 0:02:58]} 6. cxd5 {[%clk 0:03:00]}  Nxd5 {[%clk 0:02:58]} 7. Nxd5 {[%clk 0:03:01]}  Qxd5 {[%clk 0:02:58]} 8. Bxc7 {[%clk 0:03:01]}  Na6 {[%clk 0:02:58]} 9. Bxa6 {[%clk 0:03:02]}  Qxg2 {[%clk 0:02:57]} 10. Qf3 {[%clk 0:03:02]}  Qxf3 {[%clk 0:02:57]} 11. Nxf3 {[%clk 0:03:03]}  bxa6 {[%clk 0:02:57]} 12. Rc1 {[%clk 0:03:04]}  f6 {[%clk 0:02:41]} 13. Rg1 {[%clk 0:03:03]}  Bb7 {[%clk 0:02:40]} 14. Nd2 {[%clk 0:03:00]}  e5 {[%clk 0:02:34]} 15. dxe5 {[%clk 0:02:48]}  fxe5 {[%clk 0:02:34]} 16. Nc4 {[%clk 0:02:47]}  e4 {[%clk 0:01:55]} 17. Ke2 {[%clk 0:02:44]}  Bd5 {[%clk 0:01:52]} 18. b3 {[%clk 0:02:42]}  Rf7 {[%clk 0:01:40]} 19. Nd6 {[%clk 0:02:40]}  Rd7 {[%clk 0:01:40]} 20. Rgd1 {[%clk 0:02:38]}  Bb2 {[%clk 0:01:22]} 21. Rc2 {[%clk 0:02:07]}  Be6 {[%clk 0:01:22]} 22. Rdd2 {[%clk 0:01:45]}  Be5 {[%clk 0:01:03]} 23. h4 {[%clk 0:01:40]}  Bg4+ {[%clk 0:00:52]} 24. Ke1 {[%clk 0:01:39]}  Rf8 {[%clk 0:00:41]} 25. Rc5 {[%clk 0:01:33]}  Bh2 {[%clk 0:00:39]} 26. Rc4 {[%clk 0:01:00]}  h5 {[%clk 0:00:37]} 27. Rcc2 {[%clk 0:00:49]}  Kg7 {[%clk 0:00:16]} 28. Ne8+ {[%clk 0:00:46]}  Rxe8 {[%clk 0:00:16]} 29. Rxd7+ {[%clk 0:00:45]}  Bxd7 {[%clk 0:00:16]} 30. Bxh2 {[%clk 0:00:46]}  Bg4 {[%clk 0:00:12]} 31. Rc7+ {[%clk 0:00:46]}  Kf6 {[%clk 0:00:12]} 32. Bd6 {[%clk 0:00:43]}  Ke6 {[%clk 0:00:10]} 33. Bc5 {[%clk 0:00:43]}  Rd8 {[%clk 0:00:10]} 34. Bd4 {[%clk 0:00:43]}  g5 {[%clk 0:00:05]} 35. hxg5 {[%clk 0:00:43]}  h4 {[%clk 0:00:06]} 36. Rh7 {[%clk 0:00:42]}  h3 {[%clk 0:00:03]} 37. g6 {[%clk 0:00:42]}  Rg8 {[%clk 0:00:02]} 38. g7 {[%clk 0:00:42]}  Kf7 {[%clk 0:00:02]} 39. Rh4 {[%clk 0:00:42]}  Bf5 {[%clk 0:00:02]} 40. Rh8 {[%clk 0:00:42]}  Kg6 {[%clk 0:00:03]} 41. Rxg8 {[%clk 0:00:41]} 1-0


[Site "https://www.chess.com"]